bitfinex-derivatives/quotes_BTCF0:USTF0_20250212
["timestamp","ask_amount","ask_price","bid_price","bid_amount"]
[1739391426823,0.003,97350.0,97336.0,1.50052]
[1739391427029,0.07652,97349.0,97337.0,0.01606073]
[1739391427231,0.003,97350.0,97338.0,0.01606073]
[1739391427531,0.01222958,97351.0,97339.0,0.01606073]
[1739391427725,0.01222958,97351.0,97340.0,0.01606073]
[1739391427921,0.01222958,97351.0,97338.0,0.01606027]
[1739391427922,0.01222958,97351.0,97342.0,0.3608]
[1739391428118,0.01222958,97351.0,97350.0,0.3608]
[1739391428321,0.01222958,97351.0,97342.0,0.5662504]
[1739391428625,0.01222958,97351.0,97343.0,0.01605919]
[1739391428828,0.01222958,97351.0,97344.0,0.01605919]
[1739391429142,0.01222958,97351.0,97345.0,0.0321188]
[1739391429143,0.2054354,97350.0,97345.0,0.0321188]
[1739391429433,0.2054354,97350.0,97345.0,0.01605961]
[1739391429829,0.2054354,97350.0,97342.0,0.3608]
[1739391430134,0.01422958,97351.0,97343.0,0.01606001]
[1739391430333,0.01422958,97351.0,97344.0,0.01606001]
[1739391430528,0.01422958,97351.0,97345.0,0.01606001]
[1739391430731,0.2054394,97348.0,97343.0,0.01605954]
[1739391430930,0.002,97350.0,97342.0,0.3608]
[1739391431235,0.2054485,97344.0,97336.0,0.00052]
[1739391431531,0.2054485,97344.0,97337.0,0.03212163]
[1739391431733,0.5662485,97344.0,97338.0,0.01606145]
[1739391431928,0.12226754,97346.0,97337.0,0.01606081]
[1739391432233,0.12226754,97346.0,97341.0,0.3608]
[1739391432834,0.12226754,97346.0,97342.0,0.01605991]
[1739391433135,0.01222958,97351.0,97342.0,0.01605991]
[1739391433136,0.01422958,97351.0,97342.0,0.01605991]
[1739391433333,0.01422958,97351.0,97336.0,0.30203419]
[1739391433727,0.001,97346.0,97336.0,0.30203419]
[1739391434033,0.001,97346.0,97337.0,0.03212032]
[1739391434228,0.07608,97345.0,97338.0,0.01606016]
[1739391434426,0.01322958,97351.0,97339.0,0.01606016]
[1739391434827,0.01222958,97351.0,97339.0,0.01606016]
[1739391435027,0.01222958,97351.0,97340.0,0.01606016]
[1739391435427,0.2054405,97348.0,97340.0,0.01606016]
[1739391435731,0.2054437,97346.0,97341.0,0.01606016]
[1739391435925,0.2054437,97346.0,97338.0,0.3608]
[1739391436333,0.2054437,97346.0,97339.0,0.01606089]
[1739391436729,0.01222958,97351.0,97338.0,0.3608]
[1739391437034,0.001,97346.0,97338.0,0.3608]
[1739391437230,0.07592,97345.0,97338.0,0.3608]
[1739391437835,0.001,97346.0,97338.0,0.3608]
[1739391438032,0.07588,97345.0,97342.0,0.2054508]
[1739391438240,0.001,97346.0,97342.0,0.2054508]
[1739391438537,0.001,97346.0,97343.0,0.01605993]
[1739391439133,0.01222958,97351.0,97344.0,0.01605993]
[1739391439729,0.002,97346.0,97342.0,0.2054508]
[1739391440131,0.01222958,97351.0,97343.0,0.01605945]
[1739391440337,0.01222958,97351.0,97344.0,0.002]
[1739391440532,0.01222958,97351.0,97345.0,0.01605945]
[1739391440730,0.01222958,97351.0,97350.0,0.3608]
[1739391441038,0.01186123,97361.0,97356.0,0.2054201]
[1739391441237,0.12226754,97370.0,97357.0,0.11305815]
[1739391441435,0.2053993,97367.0,97358.0,0.01605809]
[1739391441630,0.12226754,97370.0,97362.0,0.3608]
[1739391442030,0.13404492,97370.0,97362.0,0.3608]
[1739391443037,0.13404492,97370.0,97363.0,0.01605674]
[1739391443332,0.13904492,97370.0,97362.0,0.3608]
[1739391447243,0.00076,97373.0,97369.0,0.3608]
[1739391447538,0.3608,97407.0,97376.0,0.0513446]
[1739391447835,0.3608,97407.0,97394.0,0.566141]
[1739391448035,0.37261491,97407.0,97394.0,0.3608]
[1739391448335,0.37261491,97407.0,97395.0,0.01605244]
[1739391448642,0.01181491,97407.0,97402.0,0.3608]
[1739391448835,0.00015402,97410.0,97402.0,0.3608]
[1739391449436,0.01195495,97410.0,97402.0,0.3608]
[1739391449637,0.00015402,97410.0,97402.0,0.3608]
[1739391449941,0.00015402,97410.0,97407.0,0.2053145]
[1739391450134,0.00115402,97410.0,97407.0,0.2053145]
[1739391450642,0.00115402,97410.0,97403.0,0.205323]
[1739391451137,0.00115402,97410.0,97402.0,0.3608]
[1739391451544,0.00115402,97410.0,97402.0,0.3618]
[1739391451545,0.00015402,97410.0,97402.0,0.3618]
[1739391451838,0.00015402,97410.0,97409.0,0.2053104]
[1739391452428,0.00015402,97410.0,97409.0,1.7053104]
[1739391452634,0.2052431,97441.0,97423.0,0.2052793]
[1739391452828,0.0974,97437.0,97426.0,0.3608]
[1739391453041,0.07508,97435.0,97426.0,0.3608]
[1739391453250,0.76020001,97436.0,97426.0,0.3608]
[1739391453536,0.07504,97434.0,97426.0,0.3608]
[1739391454042,0.76020001,97436.0,97426.0,0.3608]
[1739391454043,0.075,97433.0,97426.0,0.3608]
[1739391454232,0.77194907,97436.0,97426.0,0.3608]
[1739391454438,0.01174906,97436.0,97426.0,0.3608]
[1739391454630,0.0327,97437.0,97435.0,0.2052555]
[1739391454835,0.00015402,97441.0,97436.0,0.2052529]
[1739391455246,0.01163198,97441.0,97436.0,0.2052529]
[1739391455538,0.00015402,97441.0,97439.0,0.2052467]
[1739391455935,0.00015402,97441.0,97434.0,0.3608]
[1739391456535,0.00015402,97441.0,97436.0,0.001]
[1739391456744,0.00715402,97441.0,97436.0,0.001]
[1739391458638,0.00715402,97441.0,97435.0,0.2052555]
[1739391459537,0.00715402,97441.0,97436.0,0.001]
[1739391459942,0.00715402,97441.0,97435.0,0.2062555]
[1739391460337,0.00715402,97441.0,97435.0,0.001]
[1739391462136,0.00715402,97441.0,97440.0,0.205245]
[1739391463438,0.00015402,97441.0,97440.0,0.205245]
[1739391463740,0.00715402,97441.0,97440.0,1.706245]
[1739391465652,0.00700001,97441.0,97440.0,1.706245]
[1739391466349,0.17356304,97470.0,97440.0,1.706245]
[1739391466350,0.2052004,97462.0,97440.0,1.501]
[1739391466549,0.0303,97461.0,97450.0,0.12226754]
[1739391466847,0.0618,97469.0,97461.0,0.2051989]
[1739391467649,0.0618,97469.0,97468.0,0.3608]
[1739391467841,0.1358,97469.0,97468.0,0.3608]
[1739391468045,0.13576,97469.0,97468.0,0.3608]
[1739391468547,0.01162896,97473.0,97470.0,0.2051815]
[1739391468750,0.00015394,97475.0,97470.0,0.2051815]
[1739391469151,0.00015394,97475.0,97471.0,1.5]
[1739391470758,0.01199459,97475.0,97471.0,1.5]
[1739391470947,0.00015394,97475.0,97471.0,1.5]
[1739391471147,0.00015394,97475.0,97470.0,0.001]
[1739391471353,0.00015394,97475.0,97471.0,0.001]
[1739391472251,0.01160378,97475.0,97472.0,0.2051775]
[1739391472445,0.00015394,97475.0,97473.0,0.2051746]
[1739391473958,0.00015394,97475.0,97471.0,0.001]
[1739391474548,0.00015394,97475.0,97473.0,0.001]
[1739391475157,0.00015394,97475.0,97471.0,0.001]
[1739391475355,0.01197991,97475.0,97471.0,0.001]
[1739391475557,0.00015394,97475.0,97470.0,0.00056]
[1739391475761,0.00015394,97475.0,97473.0,0.001]
[1739391475762,0.2051734,97474.0,97473.0,0.001]
[1739391475951,0.00015394,97475.0,97456.0,1.5]
[1739391476150,0.2051979,97463.0,97456.0,1.5]
[1739391476352,0.2052013,97461.0,97456.0,1.5]
[1739391476557,0.0639,97462.0,97456.0,1.5]
[1739391476753,0.205203,97460.0,97456.0,1.5]
[1739391477855,0.0639,97462.0,97456.0,1.5]
[1739391478257,0.07541898,97462.0,97456.0,1.5]
[1739391478653,0.001,97460.0,97456.0,1.5]
[1739391478849,0.07336,97459.0,97456.0,1.5]
[1739391479064,0.0309,97459.0,97456.0,1.5]
[1739391480762,0.2052079,97458.0,97456.0,1.5]
[1739391480955,0.0309,97459.0,97456.0,1.5]
[1739391481357,0.0309,97459.0,97452.0,0.3608]
[1739391481358,0.001,97459.0,97452.0,0.3608]
[1739391481553,0.001,97459.0,97458.0,0.2052071]
[1739391481758,0.0621,97474.0,97456.0,0.0633]
[1739391481953,0.0621,97474.0,97466.0,1.5]
[1739391482355,0.0621,97474.0,97467.0,0.2051881]
[1739391482556,0.0621,97474.0,97466.0,1.50056]
[1739391482750,0.0621,97474.0,97466.0,1.7051884]
[1739391483059,0.01182706,97474.0,97473.0,0.3608]
[1739391483255,0.00015394,97475.0,97474.0,0.2051734]
[1739391484664,0.00015394,97475.0,97474.0,0.2061734]
[1739391484962,0.00015394,97475.0,97474.0,0.001]
[1739391485155,0.00015394,97475.0,97474.0,0.002]
[1739391485862,0.00015394,97475.0,97473.0,0.3608]
[1739391489752,0.00015394,97475.0,97473.0,0.5659746]
[1739391489963,0.00015394,97475.0,97473.0,0.3608]
[1739391492270,0.00015394,97475.0,97473.0,0.3628]
[1739391492871,0.00015394,97475.0,97473.0,0.3618]
[1739391493267,0.00015394,97475.0,97474.0,0.2051734]
[1739391493864,0.2051218,97499.0,97485.0,0.2051501]
[1739391494064,0.2051218,97499.0,97486.0,0.565948]
[1739391494263,0.0301,97489.0,97487.0,1.5]
[1739391494668,0.2352218,97499.0,97487.0,1.5]
[1739391494669,0.00950862,97490.0,97487.0,1.7051459]
[1739391494971,0.00015386,97498.0,97487.0,1.7051459]
[1739391495162,0.001,97489.0,97487.0,1.7051459]
[1739391495771,0.001,97490.0,97487.0,1.7051459]
[1739391496071,0.001,97490.0,97488.0,0.2051422]
[1739391496266,0.00921104,97495.0,97491.0,0.2051372]
[1739391496466,0.00015386,97498.0,97491.0,0.2051372]
[1739391496667,0.00015386,97498.0,97495.0,0.3608]
[1739391498468,0.01041419,97498.0,97495.0,0.3608]
[1739391498676,0.00115386,97498.0,97495.0,0.3608]
[1739391499667,0.03934731,97499.0,97498.0,0.00884614]
[1739391501376,0.04034731,97499.0,97498.0,0.00984614]
[1739391505166,0.04034731,97499.0,97498.0,0.001]
[1739391507877,0.03034731,97499.0,97498.0,0.001]
[1739391508972,0.01024731,97499.0,97498.0,0.001]
[1739391509171,0.01024731,97499.0,97498.0,0.206123]
[1739391510368,0.001,97499.0,97498.0,1.706123]
[1739391513474,0.00010222,97508.0,97507.0,0.205104]
[1739391513681,0.00010222,97508.0,97507.0,0.565904]
[1739391513980,0.2050663,97525.0,97513.0,0.2050912]
[1739391514184,0.0719749,97519.0,97518.0,1.8608]
[1739391517082,0.0719749,97519.0,97518.0,1.8618]
[1739391517282,0.0398749,97519.0,97518.0,1.8618]
[1739391518788,0.0094749,97519.0,97518.0,1.8618]
[1739391519079,0.75864,97528.0,97518.0,1.8618]
[1739391519286,0.07188,97527.0,97526.0,0.3608]
[1739391520685,0.07188,97527.0,97526.0,0.3618]
[1739391521280,0.76848447,97528.0,97526.0,0.3618]
[1739391521281,0.00984447,97528.0,97526.0,0.3618]
[1739391521479,0.00924446,97528.0,97526.0,0.566863]
[1739391521677,0.0637,97529.0,97526.0,0.566863]
[1739391522181,0.07313546,97529.0,97527.0,1.5]
[1739391522374,0.205062,97527.0,97526.0,0.00152]
[1739391522575,0.2050664,97525.0,97513.0,0.18135286]
[1739391522783,0.12226754,97523.0,97514.0,1.5]
[1739391522973,0.12226754,97523.0,97516.0,0.3608]
[1739391523183,0.07313546,97529.0,97526.0,0.001]
[1739391523587,0.07313546,97529.0,97516.0,0.3608]
[1739391524187,0.07313546,97529.0,97526.0,0.3618]
[1739391525384,0.07313546,97529.0,97526.0,0.3108]
[1739391526980,0.07313546,97529.0,97526.0,0.3118]
[1739391527180,0.07313546,97529.0,97526.0,0.001]
[1739391529897,0.205062,97527.0,97526.0,0.001]
[1739391530300,0.205062,97527.0,97526.0,1.501]
[1739391530497,0.07313546,97529.0,97526.0,1.501]
[1739391530697,0.205062,97527.0,97526.0,1.501]
[1739391530893,0.205062,97527.0,97526.0,1.5]
[1739391531094,0.205062,97527.0,97526.0,1.501]
[1739391532102,0.205062,97527.0,97526.0,0.001]
[1739391532500,0.205066,97526.0,97516.0,0.3608]
[1739391532700,0.3608,97524.0,97517.0,1.5]
[1739391532903,0.07164,97523.0,97517.0,1.5]
[1739391533108,0.12226754,97526.0,97517.0,1.5]
[1739391534106,0.07313546,97529.0,97517.0,1.501]
[1739391534502,0.07313546,97529.0,97524.0,0.3608]
[1739391534704,0.07313546,97529.0,97525.0,0.2050646]
[1739391534905,0.07313546,97529.0,97525.0,0.2050643]
[1739391535105,0.07313546,97529.0,97524.0,0.3608]
[1739391536807,0.07413546,97529.0,97525.0,0.001]
[1739391537411,0.07413546,97529.0,97524.0,0.3608]
[1739391537412,0.07413546,97529.0,97524.0,0.3618]
[1739391537909,0.07313546,97529.0,97525.0,0.001]
[1739391538212,0.04113546,97529.0,97525.0,0.001]
[1739391538414,0.04113546,97529.0,97525.0,0.2060658]
[1739391538711,0.04113546,97529.0,97526.0,1.5]
[1739391540213,0.04013546,97529.0,97526.0,1.5]
[1739391540411,0.04113546,97529.0,97526.0,1.5]
[1739391540707,0.04113546,97529.0,97525.0,0.001]
[1739391540708,0.2050641,97526.0,97525.0,0.001]
[1739391540914,0.04113546,97529.0,97524.0,0.3608]
[1739391541107,0.04113546,97529.0,97521.0,0.18135286]
[1739391541306,0.2050684,97524.0,97521.0,0.18135286]
[1739391541510,0.033,97523.0,97521.0,0.18135286]
[1739391542206,0.2050726,97522.0,97521.0,0.18135286]
[1739391542403,0.2050726,97522.0,97521.0,0.17177191]
[1739391542608,0.2050852,97516.0,97515.0,0.16208253]
[1739391542910,0.5658852,97516.0,97515.0,0.16208253]
[1739391543616,0.5658852,97516.0,97515.0,0.07649194]
[1739391544115,0.5658852,97516.0,97515.0,0.04796984]
[1739391544703,0.5668852,97516.0,97515.0,0.04896984]
[1739391545408,0.2060852,97516.0,97515.0,0.04896984]
[1739391545810,0.2060852,97516.0,97515.0,0.04796984]
[1739391545811,0.2050852,97516.0,97515.0,0.04796984]
[1739391546012,0.2060852,97516.0,97515.0,0.001]
[1739391546211,0.21557646,97516.0,97515.0,0.001]
[1739391546411,0.01049126,97516.0,97515.0,0.001]
[1739391546611,0.37129126,97516.0,97515.0,0.001]
[1739391547715,0.01049126,97516.0,97515.0,0.001]
[1739391548514,0.00949126,97516.0,97511.0,0.3608]
[1739391548710,0.001,97516.0,97515.0,0.001]
[1739391548906,0.0724,97516.0,97515.0,0.001]
[1739391550317,0.4332,97516.0,97515.0,0.001]
[1739391550619,0.0724,97516.0,97515.0,0.001]
[1739391551218,0.0714,97516.0,97503.0,1.8608]
[1739391551418,0.205081,97518.0,97503.0,1.8614]
[1739391551722,0.12226754,97520.0,97503.0,1.8614]
[1739391551919,0.001,97516.0,97503.0,1.8614]
[1739391552420,0.2060872,97516.0,97503.0,1.8614]
[1739391552812,0.2050872,97516.0,97503.0,1.8614]
[1739391553013,0.3608,97518.0,97503.0,1.8614]
[1739391553218,0.12226754,97520.0,97503.0,1.8614]
[1739391554020,0.2050823,97518.0,97503.0,1.8614]
[1739391554420,0.12226754,97520.0,97503.0,1.8614]
[1739391554617,0.12226754,97520.0,97503.0,0.3614]
[1739391554618,0.2050916,97513.0,97503.0,0.3614]
[1739391554811,0.2050946,97512.0,97503.0,0.3608]
[1739391555018,0.0309,97511.0,97503.0,0.3608]
[1739391556717,0.2050978,97510.0,97503.0,0.3608]
[1739391557020,0.01043247,97512.0,97507.0,0.2051035]
[1739391557226,0.01043247,97512.0,97511.0,0.3608]
[1739391557422,0.00943247,97512.0,97511.0,0.3608]
[1739391557725,0.3608,97525.0,97511.0,0.3608]
[1739391557927,0.07136,97522.0,97512.0,1.5]
[1739391559531,0.2050746,97521.0,97512.0,1.5]
[1739391559729,0.12226754,97522.0,97520.0,0.3608]
[1739391560026,0.04241082,97523.0,97512.0,1.8608]
[1739391560220,0.24748132,97523.0,97512.0,1.86132]
[1739391560622,0.04241082,97523.0,97512.0,1.8608]
[1739391560816,0.001,97522.0,97512.0,1.8608]
[1739391561222,0.07132,97521.0,97512.0,1.8608]
[1739391561730,0.07132,97521.0,97512.0,0.3608]
[1739391563629,0.07132,97520.0,97512.0,0.3608]
[1739391565329,0.07132,97519.0,97512.0,0.3608]
[1739391567030,0.205084,97517.0,97512.0,0.3608]
[1739391567535,0.32734014,97522.0,97512.0,0.3608]
[1739391568426,0.12226754,97522.0,97512.0,0.3608]
[1739391569730,0.2050806,97519.0,97512.0,0.3608]
[1739391569929,0.12226754,97522.0,97512.0,0.3608]
[1739391570132,0.205082,97518.0,97512.0,0.3608]
[1739391570632,0.12226754,97522.0,97512.0,0.3608]
[1739391570833,0.32734084,97522.0,97512.0,0.3608]
[1739391571624,0.12226754,97522.0,97512.0,0.3608]
[1739391577231,0.12226754,97522.0,97514.0,0.3608]
[1739391578235,0.32734024,97522.0,97514.0,0.3608]
[1739391578432,0.2050748,97521.0,97514.0,0.3608]
[1739391579034,0.12226754,97522.0,97514.0,0.3608]
[1739391579230,0.00941082,97523.0,97514.0,0.3608]
[1739391579431,0.12226754,97530.0,97522.0,0.3608]
[1739391579636,0.12226754,97530.0,97513.0,0.3608]
[1739391579837,0.12226754,97530.0,97526.0,1.5]
[1739391580143,0.3608,97535.0,97526.0,1.5]
[1739391580339,0.2050575,97530.0,97526.0,1.5]
[1739391580539,0.2050526,97532.0,97526.0,1.5]
[1739391580734,0.2050459,97535.0,97526.0,1.5]
[1739391580946,0.2050474,97534.0,97526.0,1.5]
[1739391581438,0.001,97530.0,97526.0,1.5]
[1739391581635,0.07132,97529.0,97526.0,1.5]
[1739391582137,0.07132,97529.0,97521.0,0.3608]
[1739391582339,0.001,97530.0,97521.0,0.3608]
[1739391582535,0.07132,97529.0,97521.0,0.3608]
[1739391582738,0.07132,97529.0,97522.0,1.5]
[1739391583743,0.07132,97529.0,97522.0,1.7050716]
[1739391584045,0.00966347,97535.0,97522.0,1.5631]
[1739391584248,0.12226754,97536.0,97523.0,0.2378703]
[1739391584548,0.13155047,97536.0,97523.0,0.2378703]
[1739391586245,0.13155047,97536.0,97523.0,0.0328]
[1739391587344,0.13155047,97536.0,97525.0,0.2050652]
[1739391587544,0.13155047,97536.0,97530.0,0.3608]
[1739391588147,0.13155047,97536.0,97531.0,1.5]
[1739391588336,0.13155047,97536.0,97530.0,0.3608]
[1739391588743,0.13155047,97536.0,97531.0,1.5]
[1739391589043,0.13255047,97536.0,97531.0,1.5]
[1739391591739,0.01028293,97536.0,97531.0,1.5]
[1739391592844,0.07953223,97550.0,97533.0,0.3608]
[1739391593043,0.07953223,97550.0,97545.0,0.3608]
[1739391593241,0.75928001,97554.0,97545.0,0.3608]
[1739391593447,0.3608,97548.0,97540.0,0.07953223]
[1739391593647,0.3608,97548.0,97542.0,0.2050294]
[1739391594349,0.3608,97548.0,97533.0,0.30616363]
[1739391594551,0.3608,97548.0,97537.0,0.2050399]
[1739391594750,0.00962487,97553.0,97533.0,0.30616363]
[1739391594951,0.00088001,97554.0,97546.0,1.5]
[1739391595148,0.07132,97553.0,97546.0,1.5]
[1739391595450,0.2763274,97553.0,97546.0,1.5]
[1739391595751,0.2050074,97553.0,97546.0,1.5]
[1739391596352,0.3608,97550.0,97546.0,1.5]
[1739391596551,0.07132,97549.0,97546.0,1.5]
[1739391596751,0.07132,97548.0,97546.0,1.5]
[1739391597852,0.3608,97550.0,97546.0,1.5]
[1739391598048,0.07132,97547.0,97546.0,1.5]
[1739391600156,0.3608,97550.0,97546.0,1.5]
[1739391600457,0.07128,97547.0,97546.0,1.5]
[1739391604054,0.3608,97550.0,97532.0,0.00015378]
[1739391604256,0.12114013,97542.0,97532.0,0.00015378]
[1739391604461,0.12114013,97542.0,97533.0,1.5]
[1739391605158,0.3608,97540.0,97533.0,1.5]
[1739391605355,0.07128,97539.0,97533.0,1.5]
[1739391607145,0.07128,97539.0,97538.0,0.2050389]
[1739391607345,0.3608,97540.0,97534.0,0.2050464]
[1739391607559,0.37024251,97540.0,97535.0,0.205045]
[1739391607855,0.3608,97540.0,97538.0,1.5]
[1739391608060,0.07128,97539.0,97538.0,1.5]
[1739391609254,0.07128,97539.0,97538.0,1.7050389]
[1739391609458,0.3608,97540.0,97538.0,1.7050389]
[1739391609758,0.3608,97540.0,97538.0,1.5]
[1739391609956,0.07128,97539.0,97538.0,1.5]
[1739391610158,0.07128,97539.0,97538.0,1.7050389]
[1739391610458,0.3608,97540.0,97538.0,1.7050389]
[1739391610859,0.3608,97540.0,97538.0,1.7050383]
[1739391611562,0.3608,97540.0,97538.0,1.5]
[1739391611752,0.07128,97539.0,97538.0,1.5]
[1739391612858,0.07128,97539.0,97538.0,1.7050389]
[1739391613058,0.3608,97540.0,97538.0,1.7050389]
[1739391616064,0.00966261,97541.0,97538.0,1.7050389]
[1739391616259,0.0795134,97548.0,97541.0,0.2050319]
[1739391616965,0.2050199,97547.0,97538.0,1.7055583]
[1739391617158,0.2050199,97547.0,97538.0,1.7050383]
[1739391617765,0.2050199,97547.0,97538.0,1.5]
[1739391618168,0.09129026,97548.0,97538.0,1.7050378]
[1739391619163,0.3608,97541.0,97538.0,1.7050378]
[1739391619371,0.3608,97541.0,97538.0,1.5]
[1739391619664,0.07128,97540.0,97538.0,1.5]
[1739391620469,0.07128,97540.0,97538.0,1.501]
[1739391621167,0.08228,97540.0,97538.0,1.501]
[1739391621667,0.0795134,97548.0,97539.0,0.3608]
[1739391622161,0.0795134,97548.0,97539.0,0.5658351]
[1739391622865,0.0795134,97548.0,97540.0,0.2050336]
[1739391623067,0.0795134,97548.0,97547.0,0.3608]
[1739391623252,0.01199618,97550.0,97547.0,0.3608]
[1739391623460,0.008,97548.0,97547.0,0.3608]
[1739391623665,0.07928,97548.0,97547.0,0.3608]
[1739391623863,0.008,97548.0,97547.0,0.3608]
[1739391624062,0.2842978,97548.0,97547.0,0.3608]
[1739391624261,0.2130178,97548.0,97547.0,0.3618]
[1739391624564,0.008,97548.0,97547.0,0.3618]
[1739391624757,0.07928,97548.0,97547.0,0.3618]
[1739391625361,0.2842978,97548.0,97547.0,0.001]
[1739391625664,0.008,97548.0,97539.0,0.3608]
[1739391625969,0.2050367,97539.0,97538.0,0.00052]
[1739391626170,0.2050354,97540.0,97538.0,0.3608]
[1739391626360,0.061,97539.0,97538.0,0.3608]
[1739391627561,0.061,97539.0,97534.0,1.50052]
[1739391627562,0.13228,97539.0,97535.0,0.3608]
[1739391627761,0.14028,97539.0,97538.0,0.001]
[1739391628764,0.3453167,97539.0,97538.0,0.001]
[1739391628967,0.2740367,97539.0,97538.0,0.001]
[1739391629360,0.2740367,97539.0,97524.0,0.21499351]
[1739391629361,0.069,97539.0,97524.0,0.21499351]
[1739391629581,0.3608,97531.0,97515.0,0.23376468]
[1739391629766,0.3608,97522.0,97515.0,1.73376468]
[1739391629966,0.2050834,97517.0,97515.0,1.73376468]
[1739391630168,0.2050834,97517.0,97515.0,0.23376468]
[1739391631070,0.2060834,97517.0,97515.0,0.24076468]
[1739391631575,0.21797205,97517.0,97515.0,0.24376468]
[1739391632174,0.01288865,97517.0,97515.0,0.24376468]
[1739391632564,0.01288865,97517.0,97515.0,0.01]
[1739391635060,0.01288865,97517.0,97515.0,0.3708]
[1739391635264,0.01288865,97517.0,97516.0,0.3608]
[1739391635461,0.01288865,97517.0,97516.0,0.565885]
[1739391635869,0.01288865,97517.0,97516.0,2.065885]
[1739391636367,0.01188865,97517.0,97516.0,2.072885]
[1739391636561,0.0944,97521.0,97516.0,2.072885]
[1739391637378,0.1065538,97521.0,97516.0,2.072885]
[1739391637873,0.1065538,97521.0,97516.0,1.8708]
[1739391638073,0.0435538,97521.0,97517.0,0.2050815]
[1739391639068,0.0121538,97521.0,97518.0,0.2050794]
[1739391639274,0.00015351,97526.0,97519.0,0.2050782]
[1739391639476,0.00015351,97526.0,97525.0,0.3608]
[1739391639673,0.01220611,97526.0,97525.0,0.3608]
[1739391639984,0.00015351,97526.0,97525.0,0.5658661]
[1739391640271,0.00015351,97526.0,97525.0,2.0658661]
[1739391655374,0.00015351,97526.0,97525.0,2.08189304]
[1739391655790,0.07950723,97540.0,97539.0,0.2050367]
[1739391656085,0.2050268,97544.0,97540.0,0.2050342]
[1739391656295,0.75944001,97548.0,97539.0,0.3608]
[1739391656581,0.07124,97544.0,97543.0,0.2050269]
[1739391656784,0.04465238,97545.0,97543.0,1.7050269]
[1739391657581,0.04465238,97545.0,97543.0,1.5]
[1739391658591,0.01,97544.0,97543.0,1.501]
[1739391658887,0.08124,97544.0,97543.0,1.501]
[1739391659282,0.07124,97544.0,97543.0,1.501]
[1739391660180,0.08124,97544.0,97543.0,1.501]
[1739391665388,0.01,97544.0,97543.0,1.501]
[1739391665593,0.08124,97544.0,97543.0,1.501]
[1739391666489,0.2150262,97544.0,97539.0,0.3608]
[1739391666793,0.2050473,97534.0,97525.0,0.3608]
[1739391667191,0.3608,97532.0,97520.0,1.50052]
[1739391667392,0.5658703,97523.0,97520.0,1.50052]
[1739391668090,0.2050703,97523.0,97520.0,1.50052]
[1739391668593,0.2050703,97523.0,97522.0,0.003]
[1739391671792,0.0969,97524.0,97522.0,0.003]
[1739391672182,0.13311818,97532.0,97522.0,0.003]
[1739391672589,0.01196257,97532.0,97527.0,0.3608]
[1739391673387,0.01196257,97532.0,97528.0,0.2050588]
[1739391675190,0.01196257,97532.0,97529.0,0.2050574]
[1739391675400,0.01196257,97532.0,97530.0,0.01602829]
[1739391675787,0.00015378,97532.0,97531.0,1.53205629]
[1739391676993,0.00015378,97532.0,97531.0,0.01602829]
[1739391677193,0.30140608,97532.0,97520.0,0.0965]
[1739391677497,0.68701281,97530.0,97521.0,1.53205885]
[1739391677692,0.12115561,97530.0,97521.0,1.5160297]
[1739391677896,0.12115561,97530.0,97522.0,0.03205789]
[1739391678101,0.12115561,97530.0,97528.0,0.3608]
[1739391678296,0.09835378,97532.0,97528.0,0.3608]
[1739391678495,0.09835378,97532.0,97529.0,0.0160297]
[1739391678798,0.09435378,97532.0,97529.0,0.0160297]
[1739391679303,0.09435378,97532.0,97528.0,0.3608]
[1739391679304,0.09435378,97532.0,97530.0,0.0160297]
[1739391680103,0.09435378,97532.0,97528.0,0.3608]
[1739391680607,0.09635378,97532.0,97528.0,0.3608]
[1739391682511,0.09635378,97532.0,97529.0,0.01602869]
[1739391683208,0.09635378,97532.0,97528.0,0.3608]
[1739391683607,0.09435378,97532.0,97528.0,0.3608]
[1739391683804,0.09735378,97532.0,97528.0,0.3608]
[1739391684206,0.00315378,97532.0,97530.0,0.2050554]
[1739391684400,0.00215378,97532.0,97530.0,0.2050554]
[1739391684800,0.00215378,97532.0,97531.0,0.01602804]
[1739391685406,0.00215378,97532.0,97531.0,0.03205565]
[1739391685597,0.00215378,97532.0,97531.0,0.01602804]
[1739391686401,0.00315378,97532.0,97531.0,0.01602804]
[1739391687312,0.00315378,97532.0,97531.0,0.03205536]
[1739391687313,0.00415378,97532.0,97531.0,0.03205536]
[1739391687812,0.00415378,97532.0,97531.0,0.23710886]
[1739391689013,0.00415378,97532.0,97531.0,0.59790881]
[1739391689803,0.00415378,97532.0,97531.0,2.09790881]
[1739391693310,0.00415378,97532.0,97531.0,2.09790818]
[1739391697914,0.00415378,97532.0,97531.0,2.09790816]
[1739391698412,0.00415378,97532.0,97531.0,2.12354998]
[1739391699111,0.00415378,97532.0,97531.0,2.12354668]
[1739391701115,0.00415378,97532.0,97531.0,2.12354779]
[1739391701807,0.00415378,97532.0,97531.0,2.12354768]
[1739391702712,0.00415378,97532.0,97531.0,2.09790698]
[1739391709923,0.00415378,97532.0,97531.0,2.12354907]
[1739391712522,0.00415378,97532.0,97531.0,2.36589468]
[1739391713523,0.00415378,97532.0,97531.0,2.34025259]
[1739391715118,0.00415378,97532.0,97531.0,2.32422715]
[1739391715322,0.00415378,97532.0,97531.0,2.1352007]
[1739391715824,0.00415378,97532.0,97531.0,2.11917266]
[1739391716518,0.00415378,97532.0,97531.0,2.10314561]
[1739391717221,0.00415378,97532.0,97531.0,1.74234561]
[1739391717422,0.00415378,97532.0,97531.0,1.5]
[1739391718522,0.00415378,97532.0,97531.0,1.51602796]
[1739391718725,0.00415378,97532.0,97531.0,1.5]
[1739391721627,0.00415378,97532.0,97530.0,0.3608]
[1739391721827,0.00415378,97532.0,97524.0,0.24265466]
[1739391722225,0.20920718,97532.0,97525.0,1.5]
[1739391723634,0.2050592,97529.0,97525.0,1.5]
[1739391723834,0.2050605,97528.0,97524.0,0.24265466]
[1739391724427,0.00315378,97532.0,97524.0,0.24265466]
[1739391724743,0.00315378,97532.0,97516.0,1.50056]
[1739391724928,0.15901636,97526.0,97516.0,1.5]
[1739391725129,0.2050666,97525.0,97516.0,1.5]